bitfinex/quotes_ETHUSD_20220123
["timestamp","ask_amount","ask_price","bid_price","bid_amount"]
[1642901339358,0.00113685,2451.9,2451.8,1.21122438]
[1642901339962,3.685e-05,2452.1,2451.9,2.7]
[1642901340169,0.59710013,2452.5,2452.0,2.90422]
[1642901340462,0.00284211,2452.4,2452.0,2.80209582]
[1642901340862,0.00227369,2452.3,2452.0,2.80209582]
[1642901341062,0.66545877,2452.9,2452.3,2.70454738]
[1642901341063,0.04,2452.9,2452.3,2.70454738]
[1642901341469,0.00284212,2452.8,2452.3,2.70454738]
[1642901341864,0.00227369,2452.7,2452.3,2.70454738]
[1642901342264,0.00170527,2452.6,2452.4,2.26087106]
[1642901342511,0.3068,2453.2,2452.6,23.92]
[1642901342712,0.04,2453.6,2452.7,2.92232138]
[1642901342903,0.04,2453.6,2452.7,2.90385]
[1642901342904,0.00113685,2452.8,2452.7,2.90385]
[1642901343106,0.00113685,2452.8,2452.7,5.17451427]
[1642901343304,0.00113685,2452.8,2452.7,6.50409703]
[1642901343506,0.00113685,2452.8,2452.7,4.02958276]
[1642901344107,0.00113685,2452.8,2452.7,6.2950372]
[1642901344308,0.00113685,2452.8,2452.7,6.19013635]
[1642901344504,0.00113685,2452.8,2452.7,6.39398635]
[1642901344705,0.00113685,2452.8,2452.7,4.02958276]
[1642901345704,1.60605887,2453.8,2453.1,1.41115118]
[1642901345909,1.55605887,2453.8,2453.1,1.41115118]
[1642901346106,0.00397896,2453.5,2453.1,1.41115118]
[1642901346553,0.00341054,2453.4,2452.7,2.01232946]
[1642901346852,0.54341664,2453.8,2452.8,2.7]
[1642901347055,0.54341664,2453.8,2452.9,1.96410702]
[1642901347253,0.0022737,2453.7,2452.9,0.00227369]
[1642901347453,0.0022737,2453.7,2453.0,0.00170527]
[1642901347652,0.00170527,2453.6,2452.8,0.00284211]
[1642901348053,0.00113685,2453.5,2453.3,1.15689339]
[1642901348352,0.00113685,2453.5,2452.8,0.00284211]
[1642901348955,0.00113685,2453.5,2452.9,0.01223465]
[1642901349154,0.00113685,2453.5,2452.9,0.21608465]
[1642901349353,0.00113685,2453.5,2453.0,0.00170527]
[1642901349857,0.00113685,2453.5,2452.7,0.00341054]
[1642901349858,1.45163154,2453.2,2452.7,0.00341054]
[1642901350112,0.492,2453.1,2452.7,0.00341054]
[1642901350313,0.492,2453.1,2452.4,0.00511581]
[1642901350809,0.492,2453.1,2452.4,1.36012695]
[1642901351011,1.492,2453.1,2452.4,1.36012695]
[1642901351212,1.492,2453.1,2452.5,0.00454738]
[1642901352012,4.992,2453.1,2452.5,0.00454738]
[1642901352510,5.292,2453.1,2452.5,0.00454738]
[1642901352716,46.7048563,2453.1,2452.5,0.00454738]
[1642901352912,3.5,2453.0,2452.4,0.00511581]
[1642901353116,3.992,2452.9,2452.4,0.00511581]
[1642901353514,3.992,2452.9,2452.8,1.31934789]
[1642901353763,3.992,2452.9,2452.8,0.57910763]
[1642901353764,3.5,2452.9,2452.8,0.57910763]
[1642901353962,3.5,2452.9,2452.8,0.49294974]
[1642901354561,0.00113685,2453.5,2452.8,0.49294974]
[1642901354762,0.00113685,2453.5,2452.9,1.94821129]
[1642901354962,0.00113685,2453.5,2453.3,1.43424384]
[1642901355365,0.00113685,2453.5,2453.0,0.00170527]
[1642901355767,0.54341664,2453.8,2453.6,0.0022737]
[1642901356164,0.00113685,2453.7,2453.6,0.0022737]
[1642901358105,1.21558099,2453.7,2453.6,0.0022737]
[1642901358307,0.00113685,2453.7,2453.6,0.0022737]
[1642901359405,1.3805188,2453.7,2453.6,0.0022737]
[1642901359707,0.00113685,2453.7,2453.6,0.0022737]
[1642901360106,0.49313685,2453.7,2453.6,0.0022737]
[1642901360505,1.09313685,2453.7,2453.6,0.0022737]
[1642901360808,1.90216858,2453.7,2453.6,0.0022737]
[1642901361010,2.20216858,2453.7,2453.6,0.0022737]
[1642901361255,3.20216858,2453.7,2453.6,0.0022737]
[1642901361457,2.20216858,2453.7,2453.6,0.0022737]
[1642901361656,3.20216858,2453.7,2453.6,0.0022737]
[1642901361856,2.20216858,2453.7,2453.6,0.0022737]
[1642901362061,2.20216858,2453.7,2452.5,0.00568423]
[1642901362062,2.7,2453.6,2452.5,0.00568423]
[1642901362261,1.4528242,2452.9,2452.5,0.00568423]
[1642901362457,1.4528242,2452.9,2452.3,3.74354738]
[1642901362458,0.3,2452.9,2452.7,0.00454739]
[1642901362658,0.3,2452.9,2452.3,3.74354738]
[1642901362659,0.3,2452.9,2452.4,0.00625266]
[1642901362857,1.092,2453.0,2452.4,0.00625266]
[1642901363462,1.45282288,2452.9,2452.4,0.00625266]
[1642901363657,2.45282288,2452.9,2452.4,0.00625266]
[1642901364056,1.45282288,2452.9,2452.4,0.00625266]
[1642901364258,1.44686966,2453.4,2452.4,0.00625266]
[1642901364259,0.42627966,2453.4,2452.4,0.00625266]
[1642901364558,0.492,2453.2,2452.4,0.00625266]
[1642901365213,1.79477479,2453.2,2452.4,0.00625266]
[1642901365613,0.492,2453.2,2452.4,0.00625266]
[1642901365813,0.42627966,2453.4,2452.4,0.00625266]
[1642901366018,0.72627966,2453.4,2452.4,0.00625266]
[1642901366315,0.492,2453.6,2452.4,0.00625266]
[1642901366513,1.0,2453.6,2453.1,1.40655662]
[1642901366714,0.00113685,2453.7,2453.1,1.40655662]
[1642901367015,0.00113685,2453.7,2453.2,0.00170527]
[1642901367415,0.08798866,2453.7,2453.2,0.00170527]
[1642901367615,0.492,2453.6,2453.2,0.00170527]
[1642901367915,1.49244781,2452.9,2452.4,0.00625266]
[1642901368515,1.39244781,2452.9,2452.4,0.00625266]
[1642901368954,0.492,2453.3,2452.4,0.00625266]
[1642901369354,0.87885181,2453.3,2452.4,0.00625266]
[1642901369556,0.3,2453.2,2452.4,0.00625266]
[1642901369754,0.792,2453.2,2452.4,0.00625266]
[1642901369958,2.23055208,2453.2,2452.6,1.3216455]
[1642901370155,3.23055208,2453.2,2452.6,1.3216455]
[1642901370357,1.93055208,2453.2,2452.7,0.00454739]
[1642901371259,1.93055208,2453.2,2452.4,0.00625266]
[1642901371455,2.53055208,2453.2,2452.4,0.00625266]
[1642901371657,1.93055208,2453.2,2452.4,0.00625266]
[1642901371854,1.93055208,2453.2,2452.5,0.42915685]
[1642901372355,1.93055208,2453.2,2452.6,0.00511581]
[1642901372813,2.23055208,2453.2,2452.6,0.00511581]
[1642901373013,2.23055208,2453.2,2452.4,0.00625266]
[1642901373014,26.53740389,2453.2,2452.4,0.00625266]
[1642901373309,41.03820836,2453.1,2452.4,0.00625266]
[1642901373507,41.03820836,2453.1,2452.3,0.00454738]
[1642901373508,1.09353787,2452.5,2452.3,0.00454738]
[1642901373710,2.942,2452.4,2452.3,0.00454738]
[1642901373910,3.242,2452.4,2452.3,0.00454738]
[1642901374108,7.44036086,2452.4,2452.3,0.00454738]
[1642901374608,4.99036086,2452.4,2451.6,0.00852637]
[1642901374807,1.0,2452.3,2451.6,0.00852637]
[1642901375012,0.492,2452.2,2451.7,0.00397896]
[1642901375707,1.86287142,2452.2,2451.7,0.00397896]
[1642901376110,1.2755583,2451.8,2451.7,0.00397896]
[1642901376361,2.0675583,2451.8,2451.7,0.00397896]
[1642901376568,2.0675583,2451.8,2451.6,0.00852637]
[1642901376569,2.7,2451.7,2451.6,0.00852637]
[1642901376759,3.192,2451.7,2451.6,0.00852637]
[1642901377160,4.192,2451.7,2451.6,0.00852637]
[1642901377663,4.192,2451.7,2450.3,7.48]
[1642901377664,2.25,2451.4,2449.9,3.21821923]
[1642901377861,0.492,2451.3,2449.9,5.22715607]
[1642901378160,1.792,2451.3,2450.7,0.00568424]
[1642901378563,1.092,2451.3,2450.8,0.42915685]
[1642901378961,1.092,2451.3,2450.9,0.00454739]
[1642901378962,0.492,2451.3,2450.9,0.00454739]
[1642901379166,0.642,2451.3,2450.9,0.00454739]
[1642901379360,0.342,2451.3,2450.9,0.00454739]
[1642901380018,0.342,2451.3,2451.2,1.28062631]
[1642901380209,0.3,2451.5,2451.2,1.28062631]
[1642901380408,2.73111187,2452.0,2451.2,1.28346843]
[1642901380409,0.492,2451.8,2451.2,1.28346843]
[1642901380608,0.492,2451.8,2451.3,0.00227369]
[1642901381412,0.492,2451.8,2451.7,1.27894942]
[1642901381911,0.492,2451.8,2451.3,0.00227369]
[1642901382311,0.492,2451.8,2451.2,0.00284212]
[1642901382515,1.94004507,2451.7,2451.1,0.00341054]
[1642901382714,1.94004507,2451.7,2450.9,0.00454739]
[1642901382715,0.492,2451.6,2450.9,0.00454739]
[1642901382922,0.57885181,2451.6,2450.9,0.00454739]
[1642901383112,0.57885181,2451.6,2450.6,3.15394388]
[1642901383312,0.792,2451.6,2450.6,3.15394388]
[1642901383514,0.01258248,2451.5,2450.5,0.00682108]
[1642901383763,1.51645217,2450.7,2450.5,0.00682108]
[1642901383962,0.492,2450.9,2450.2,1.86914417]
[1642901384159,0.00170527,2450.6,2450.2,1.86914417]
[1642901384365,0.6,2450.7,2450.2,1.38977045]
[1642901384562,0.6,2450.7,2449.4,5.20892112]
[1642901384563,0.00113685,2450.5,2449.4,5.20892112]
[1642901384764,0.00113685,2450.5,2448.8,0.36705]
[1642901384765,0.01273347,2450.2,2448.8,6.74632918]
[1642901384961,0.01273347,2450.2,2449.5,0.00454739]
[1642901384962,0.492,2450.1,2449.5,0.00454739]
[1642901385162,0.492,2450.1,2448.9,0.01298755]
[1642901385362,0.492,2450.1,2449.0,0.00284211]
[1642901385363,0.00284212,2450.0,2449.0,0.00284211]
[1642901385563,0.00284212,2450.0,2449.2,0.42915685]
[1642901385765,2.13622558,2451.2,2449.5,0.01225364]
[1642901385766,0.0022737,2449.9,2449.5,0.01225364]
[1642901385965,0.492,2450.8,2450.1,0.00625266]
[1642901386368,1.19641255,2451.4,2450.2,1.52119857]
[1642901386369,0.00454738,2450.7,2450.2,1.52119857]
[1642901386764,1.43137576,2451.9,2450.4,2.7]
[1642901386967,1.43137576,2451.9,2450.7,0.01230369]
[1642901387165,0.00682108,2451.8,2450.7,0.01230369]
[1642901387363,0.00682108,2451.8,2450.4,2.7]
[1642901387630,1.28291472,2451.5,2450.6,1.50957432]
[1642901387812,0.492,2451.4,2450.6,1.50957432]
[1642901388010,0.49654739,2451.4,2450.6,1.50957432]
[1642901388210,0.00397897,2451.3,2450.6,1.50957432]
[1642901388614,0.00341054,2451.2,2450.6,1.50957432]
[1642901388811,0.00341054,2451.2,2450.3,0.00170527]
[1642901389012,0.00284212,2451.1,2450.3,0.00170527]
[1642901389210,0.00284212,2451.1,2450.2,0.00227369]
[1642901389415,0.00227369,2451.0,2450.2,0.00227369]
[1642901389810,0.00170527,2450.9,2450.6,1.10475222]
[1642901390213,2.04802515,2451.8,2450.8,2.7]
[1642901390214,1.949162,2451.8,2450.8,2.7]
[1642901390417,1.949162,2451.8,2450.9,2.37209621]
[1642901390615,0.00284212,2451.3,2450.7,6.2705373]
[1642901390810,0.00284212,2451.3,2450.7,5.89770142]
[1642901391010,1.949162,2451.8,2450.7,5.88518599]
[1642901391011,0.00227369,2451.2,2450.7,5.88518599]
[1642901391259,0.00227369,2451.2,2451.1,1.27323263]
[1642901391462,0.27639994,2452.0,2451.1,1.27323263]
[1642901391661,0.00227369,2451.2,2451.1,1.27323263]
[1642901391866,7.369e-05,2451.2,2451.1,2.2670703]
[1642901392065,7.369e-05,2451.2,2451.1,0.21593727]
[1642901392269,7.369e-05,2451.2,2451.1,24.13593727]
[1642901392461,7.369e-05,2451.2,2451.1,0.51593727]
[1642901392662,7.369e-05,2451.2,2451.1,0.21593727]
[1642901393264,7.369e-05,2451.2,2450.9,0.20385]
[1642901393664,7.369e-05,2451.2,2451.0,0.00106316]
[1642901394566,7.369e-05,2451.2,2450.9,0.00163158]
[1642901394871,7.369e-05,2451.2,2450.1,3.25855266]
[1642901394872,7.369e-05,2451.2,2450.4,0.0044737]
[1642901395314,0.0869255,2451.2,2450.3,0.00504212]
[1642901395514,1.23436121,2451.0,2450.5,0.00390527]
[1642901395717,1.53436121,2451.0,2450.3,0.00504212]
[1642901395915,0.6,2451.0,2450.3,0.00504212]
[1642901396116,0.3869255,2451.2,2450.3,0.00504212]
[1642901396417,0.30007369,2451.2,2450.2,0.00561054]
[1642901396616,7.369e-05,2451.2,2450.2,0.00561054]
[1642901397016,7.369e-05,2451.2,2450.6,1.4202576]
[1642901397215,7.369e-05,2451.2,2450.2,0.00561054]
[1642901397421,7.369e-05,2451.2,2450.7,0.00276843]
[1642901397615,7.369e-05,2451.2,2450.2,0.00561054]
[1642901398118,1.2262266,2451.2,2450.2,0.00561054]
[1642901398316,1.2262266,2451.2,2450.2,1.22685445]
[1642901398517,7.369e-05,2451.2,2450.2,1.22685445]
[1642901398759,7.369e-05,2451.2,2450.3,0.00504212]
[1642901400162,0.492,2451.1,2450.3,0.00504212]
[1642901400362,0.492,2451.1,2450.2,0.00561054]
[1642901400563,0.792,2451.1,2450.2,0.00561054]
[1642901400963,1.33868347,2450.8,2450.2,0.00561054]
[1642901401164,0.792,2451.1,2450.2,0.00561054]
[1642901401362,0.3,2450.8,2450.2,0.00561054]
[1642901401564,1.092,2451.1,2450.2,0.00561054]
[1642901401764,0.792,2451.1,2450.2,0.00561054]
[1642901402532,1.12745838,2450.8,2450.2,0.00561054]
[1642901402720,1.42745838,2450.8,2450.2,0.00561054]
[1642901403321,1.34518867,2450.4,2450.2,0.00561054]
[1642901403523,1.94518867,2450.4,2450.2,0.00561054]
[1642901403719,2.03204048,2450.4,2450.2,0.00561054]
[1642901403921,1.6,2450.2,2450.1,0.00625266]
[1642901404120,1.37878431,2449.7,2449.2,0.42915685]
[1642901404320,0.492,2450.0,2449.2,0.42915685]
[1642901404521,0.492,2449.9,2449.2,0.42915685]
[1642901404922,1.492,2450.5,2449.2,0.44140254]
[1642901405126,1.492,2450.5,2449.3,3.47377785]
[1642901405127,0.792,2450.5,2449.3,3.47377785]
[1642901405326,1.092,2450.5,2449.2,2.44811366]
[1642901405522,1.092,2450.5,2449.3,3.47387268]
[1642901405723,1.092,2450.5,2449.8,1.14856737]
[1642901406364,0.00113684,2450.4,2449.9,0.00170527]
[1642901406565,1.31403834,2450.4,2449.9,0.00170527]
[1642901406764,0.00113684,2450.4,2449.9,0.00170527]
[1642901407366,0.00113684,2450.4,2449.9,1.92402574]
[1642901407869,0.00113684,2450.4,2450.0,0.00113685]
[1642901408867,0.00113684,2450.4,2450.2,1.36558037]
[1642901409468,0.00113684,2450.4,2450.3,4.87625044]
[1642901410312,0.00113684,2450.4,2450.3,6.81014785]
[1642901410509,0.00113684,2450.4,2450.3,4.87625044]
[1642901410912,0.59777174,2451.0,2450.4,0.00227368]
[1642901411310,0.00284212,2450.9,2450.4,0.00227368]
[1642901411810,0.0022737,2450.8,2450.4,0.00227368]
[1642901412212,0.00170527,2450.7,2450.3,4.72852412]
[1642901412711,0.00113685,2450.6,2450.3,4.72852412]
[1642901413517,0.00113685,2450.6,2450.4,2.0366324]
[1642901413768,0.00113685,2450.6,2450.5,2.90385]
[1642901413968,0.00113685,2450.6,2450.5,4.98448826]
[1642901414367,0.00113685,2450.6,2450.5,8.45690358]
[1642901414568,0.03933682,2451.5,2450.6,2.45]
[1642901414769,0.03933682,2451.5,2451.0,2.43812522]
[1642901414969,0.00454739,2451.4,2451.0,2.43812522]
[1642901415374,0.00397897,2451.3,2451.0,2.43812522]
[1642901415572,0.00397897,2451.3,2451.0,3.82798009]
[1642901415769,0.00341054,2451.2,2451.0,3.82798009]
[1642901416070,0.00284212,2451.1,2451.0,3.82798009]
[1642901416871,0.00284212,2451.1,2451.0,2.43812522]
[1642901418915,2.70284212,2451.1,2451.0,2.522e-05]
[1642901419122,2.70284212,2451.1,2450.5,2.2903989]
[1642901419123,1.36078144,2450.6,2450.5,2.2903989]
[1642901419316,1.66078144,2450.6,2450.5,2.2903989]
[1642901419515,1.96078144,2450.6,2450.5,2.2903989]
[1642901420118,1.00227369,2451.0,2450.5,2.2903989]
[1642901420119,0.49427369,2451.0,2450.5,2.2903989]
[1642901420517,1.02156,2451.3,2450.3,2.0772501]
[1642901420518,0.00170527,2450.9,2450.3,2.0772501]
[1642901420727,0.00170527,2450.9,2450.6,2.2903989]
[1642901420917,0.00113685,2450.8,2450.6,2.2903989]
[1642901421365,0.00113685,2450.8,2450.7,1.21630974]
[1642901422463,0.00113685,2450.8,2450.6,2.2903989]
[1642901422864,1.46215423,2450.8,2450.6,2.2903989]
[1642901424063,0.00113685,2450.8,2450.6,2.2903989]
[1642901425816,0.00113685,2450.8,2450.4,0.00113685]
[1642901426214,0.00113685,2450.8,2450.6,2.2903989]
[1642901427214,1.29963288,2451.0,2450.6,2.2903989]
[1642901429681,1.79163288,2451.0,2450.6,2.2903989]
[1642901430280,1.87848469,2451.0,2450.6,2.2903989]
[1642901430481,1.79163288,2451.0,2450.6,2.2903989]
[1642901430886,2.17848469,2451.0,2450.6,2.2903989]
[1642901431082,2.17848469,2451.0,2450.4,0.00113685]
[1642901431286,1.55101803,2450.5,2450.4,0.00113685]
[1642901431483,1.55101803,2450.5,2450.1,0.00397897]
[1642901431685,1.55101803,2450.5,2449.9,0.00511581]
[1642901432082,1.55101803,2450.5,2449.5,3.8578]
[1642901432083,1.55101803,2450.5,2449.8,0.00568424]
[1642901432281,1.55101803,2450.5,2449.8,1.28750628]
[1642901432508,2.15101803,2450.5,2449.8,1.28750628]
[1642901432711,2.15101803,2450.5,2449.9,0.00511581]
[1642901433109,1.0,2450.9,2449.9,0.00511581]
[1642901433309,1.09042053,2451.0,2449.9,0.00511581]
[1642901433515,1.69042053,2451.0,2449.9,0.00511581]
[1642901433710,1.19842053,2451.0,2449.9,0.00511581]
[1642901433911,1.19842053,2451.0,2450.0,3.47307762]
[1642901434112,1.69042053,2451.0,2450.0,3.47307762]
[1642901434312,1.69042053,2451.0,2450.1,0.00397897]
[1642901434513,1.51175154,2450.9,2450.1,0.00397897]
[1642901434713,1.51175154,2450.9,2450.3,1.30145539]
[1642901435115,1.51175154,2450.9,2450.4,0.0022737]
[1642901435515,0.492,2450.8,2449.8,0.00568424]
[1642901435715,0.492,2450.8,2449.9,0.00511581]
[1642901435914,0.492,2450.8,2449.8,0.00568424]
[1642901436386,1.792,2450.8,2450.2,2.2903989]
[1642901436774,1.792,2450.8,2450.3,0.00284212]
[1642901437175,1.47736982,2450.7,2450.3,0.00284212]
[1642901437376,0.492,2450.6,2450.3,0.00284212]
[1642901437577,0.792,2450.6,2450.3,0.00284212]
[1642901437780,0.792,2450.6,2449.7,3.715]
[1642901437781,1.42192243,2449.8,2449.7,3.715]
[1642901437979,1.42192243,2449.8,2449.0,5.22215809]
[1642901438176,1.42192243,2449.8,2449.7,0.00341054]
[1642901438177,2.02192243,2449.8,2449.7,0.00341054]
[1642901438375,0.6,2449.8,2449.7,0.00341054]
[1642901438579,0.3,2449.8,2449.3,3.47400421]
[1642901438778,0.3,2449.8,2449.3,0.00568423]
[1642901438978,0.6,2449.9,2449.4,1.29536866]
[1642901439176,0.3,2449.9,2448.8,1.54593441]
[1642901439375,0.3,2449.9,2449.5,0.00454739]
[1642901439576,0.3,2449.9,2449.4,0.42915685]
[1642901440012,0.3,2449.9,2449.5,0.00454739]
[1642901440013,1.3,2449.9,2449.5,0.00454739]
[1642901440214,0.492,2450.0,2449.5,0.00454739]
[1642901441016,0.492,2450.0,2449.1,1.41693782]
[1642901441217,0.492,2450.0,2449.2,0.00625266]
[1642901441616,0.492,2450.0,2449.6,0.42915685]
[1642901442318,0.492,2450.0,2449.2,0.00625266]
[1642901442520,0.792,2450.0,2449.2,0.00625266]
[1642901442821,0.3,2449.9,2449.1,0.00682108]
[1642901443018,0.492,2449.8,2448.8,0.00852635]
[1642901443219,1.40866953,2449.7,2449.1,0.42915685]
[1642901443416,0.492,2449.6,2449.1,0.42915685]
[1642901443619,0.492,2449.6,2449.2,0.00625266]
[1642901444266,0.492,2449.6,2449.5,1.562]
[1642901444667,0.492,2449.6,2449.5,1.56654739]
[1642901445665,0.4268598,2449.7,2449.5,1.56654739]
[1642901445868,1.0,2449.9,2449.5,1.56654739]
[1642901446068,1.0,2449.9,2449.6,0.00397896]
[1642901446069,0.6,2449.9,2449.6,0.00397896]
[1642901446868,1.6,2449.9,2449.6,0.00397896]
[1642901447268,2.47510618,2450.0,2449.6,0.00397896]
[1642901448619,0.3,2449.9,2449.6,0.00397896]
[1642901448820,0.792,2449.9,2449.6,0.00397896]
[1642901449019,1.792,2449.9,2449.6,0.00397896]
[1642901449418,1.792,2449.9,2449.5,1.562]
[1642901449419,1.8,2449.8,2449.5,7.896e-05]
[1642901449621,0.492,2449.7,2449.5,7.896e-05]
[1642901450020,0.792,2449.7,2449.5,7.896e-05]
[1642901451122,0.792,2449.7,2448.4,0.09886315]
[1642901451123,43.73868129,2449.6,2448.4,0.09886315]
[1642901451369,0.492,2449.5,2448.4,0.09886315]
[1642901451570,1.26347381,2448.8,2448.5,0.00625266]
[1642901451772,0.492,2448.7,2448.5,0.00625266]
[1642901452072,0.792,2448.7,2448.5,0.00625266]
[1642901452367,0.792,2448.7,2448.1,0.00852636]
[1642901454674,1.36971908,2448.5,2448.1,0.00852636]
[1642901455613,1.0,2448.6,2448.1,1.4663091]
[1642901455814,1.792,2448.7,2448.1,1.4663091]
[1642901456014,0.792,2448.7,2448.2,0.00795793]
[1642901457217,0.492,2448.7,2448.2,2.10285215]
[1642901457417,1.0,2449.2,2448.3,0.42915685]
[1642901457618,0.492,2449.3,2448.5,0.01243709]
[1642901457619,3.5,2449.3,2448.5,0.01243709]
[1642901457817,0.00113685,2449.8,2448.5,0.01243709]
[1642901458014,0.00113685,2449.8,2449.3,1.2459157]
[1642901458415,0.00113685,2449.8,2449.4,0.00113685]
[1642901458615,1.2643302,2449.8,2449.4,0.00113685]
[1642901458867,0.30113685,2449.8,2449.4,0.00113685]
[1642901459466,0.00113685,2449.8,2449.4,0.00113685]
[1642901459969,1.32683663,2449.7,2449.4,0.00113685]
[1642901460167,0.00113685,2449.8,2449.4,0.00113685]
[1642901460467,0.00113685,2449.8,2449.3,1.2459157]
[1642901460668,0.00170527,2449.7,2449.3,1.2459157]
[1642901461068,0.00113685,2449.6,2449.3,1.2459157]
[1642901461467,1.52550753,2449.6,2449.3,1.2459157]
[1642901461668,1.82550753,2449.6,2449.3,1.2459157]
[1642901462069,1.82550753,2449.6,2448.6,2.09489422]
[1642901462273,2.12550753,2449.6,2448.5,7.33443709]
[1642901462535,2.12550753,2449.6,2448.7,0.00397896]
[1642901463322,2.12550753,2449.6,2449.2,1.21322534]
[1642901463522,1.60227369,2449.8,2449.2,1.21322534]
[1642901463931,0.00170527,2449.7,2449.2,1.21322534]
[1642901464424,0.00113685,2449.6,2449.2,1.16322534]
[1642901464627,1.11557371,2449.6,2449.5,4.1]
[1642901464829,1.71443686,2449.6,2449.5,4.1]
[1642901465025,0.60113685,2449.6,2449.5,4.1]
[1642901465224,0.00113685,2449.6,2449.5,4.1]
[1642901465426,0.00113685,2449.6,2449.3,2.25508072]
[1642901465623,0.00113685,2449.6,2449.2,1.16322534]
[1642901473869,0.00113685,2449.6,2448.7,0.00397896]
[1642901474173,0.492,2449.5,2448.7,0.00397896]
[1642901474571,0.00113685,2449.6,2449.0,0.01231895]
[1642901474775,4.12025658,2450.4,2449.1,2.7]
[1642901474776,0.42682632,2450.4,2449.1,2.7]
[1642901474974,0.42682632,2450.4,2449.5,0.01289669]
[1642901474975,3.5,2450.3,2449.5,0.01289669]
[1642901475173,0.00170527,2449.9,2449.5,0.20385]
[1642901475571,0.00113684,2449.8,2449.6,1.44926574]
[1642901475870,0.00511581,2450.5,2449.6,1.44926574]
[1642901476270,1.13042053,2451.0,2449.6,1.44926574]
[1642901476271,0.00454738,2450.4,2449.6,1.44926574]
[1642901476670,0.00397896,2450.3,2450.2,1.23926021]
[1642901476868,0.00397896,2450.3,2449.6,1.2227]
[1642901477070,1.19640123,2450.3,2449.6,1.2227]
[1642901477271,0.00341054,2450.2,2449.4,4.05466315]
[1642901477729,0.58169392,2450.1,2449.4,0.09886315]
[1642901477926,0.58169392,2450.1,2449.4,1.47138781]
[1642901478125,0.58169392,2450.1,2449.2,0.0022737]
[1642901478126,0.0891255,2450.0,2449.2,0.0022737]
[1642901478325,0.492,2449.9,2449.2,0.0022737]
[1642901478525,1.30602403,2449.7,2449.1,0.00284212]
[1642901478727,0.00113684,2449.8,2449.1,0.00284212]
[1642901478926,0.00113684,2449.8,2449.2,0.20385]
[1642901479127,0.00113684,2449.8,2449.2,0.21633825]
[1642901479330,0.00113684,2449.8,2449.3,2.31333749]
[1642901479729,0.03933682,2450.9,2449.3,2.31333749]
[1642901479730,0.03191397,2450.9,2449.5,2.7]
[1642901479931,0.63842053,2451.0,2449.7,0.01294633]
[1642901480131,0.00341054,2450.4,2449.7,0.01294633]
[1642901480430,0.00341054,2450.4,2449.7,7.38284633]
[1642901480626,0.00284212,2450.3,2449.7,7.38284633]
[1642901480829,0.00284212,2450.3,2449.8,0.20385]
[1642901481028,0.0022737,2450.2,2450.0,1.28507062]
[1642901481480,0.00170527,2450.1,2450.0,1.28507062]
[1642901481976,0.00170527,2450.1,2450.0,1.48892062]
[1642901482476,0.00170527,2450.1,2450.0,3.88892062]
[1642901483577,5.27e-06,2450.1,2450.0,29.55426403]
[1642901483778,0.04,2451.0,2450.1,0.05679098]
[1642901483980,0.04,2451.0,2450.6,0.01265161]
[1642901484279,0.25304911,2452.1,2450.8,2.7]
[1642901484280,0.04,2452.1,2450.8,2.7]
[1642901484481,0.04,2452.1,2452.0,1.11801332]
[1642901484878,0.04,2452.1,2451.0,8.5118]
[1642901485125,0.04,2452.1,2451.0,5.2025]
[1642901485324,0.00625266,2452.0,2451.1,0.20385]
[1642901485523,1.18304392,2451.8,2451.1,0.20385]
[1642901485924,0.00454739,2451.7,2451.1,0.20385]
[1642901486126,1.21418766,2451.4,2451.1,0.20385]
[1642901486324,1.21418766,2451.4,2450.8,2.13781773]
[1642901486525,0.0022737,2451.3,2450.7,2.08279163]
[1642901486926,0.00170527,2451.2,2450.7,2.08279163]
[1642901487125,0.00170527,2451.2,2451.0,1.12052227]
[1642901487327,0.00113685,2451.1,2450.7,0.10742284]
[1642901487525,0.00113685,2451.1,2450.7,0.00113684]
[1642901487526,1.36106446,2451.1,2450.7,0.00113684]
[1642901487925,1.40827628,2450.6,2450.4,3.61357369]
[1642901488125,0.00113685,2451.1,2450.4,3.61357369]
[1642901488334,0.00284211,2451.0,2450.4,3.61357369]
[1642901488526,0.00284211,2451.0,2450.6,1.43580399]
[1642901488767,0.00227369,2450.9,2450.4,3.61357369]
[1642901489174,1.1222971,2450.8,2450.3,0.0008]
[1642901489369,1.4222971,2450.8,2450.3,0.0008]
[1642901489574,0.30113684,2450.7,2450.3,0.0008]
[1642901489774,0.79313684,2450.7,2450.3,0.0008]
[1642901489971,1.53917622,2450.4,2450.3,0.0008]
[1642901490172,0.00113684,2450.7,2450.3,0.0008]
[1642901490371,0.00113684,2450.7,2450.3,0.00193685]
[1642901490974,0.00113684,2450.7,2450.4,1.13075896]
[1642901491174,1.34322227,2450.6,2450.3,0.00193685]
[1642901491771,1.83522227,2450.6,2450.3,0.00193685]
[1642901491972,1.34322227,2450.6,2450.3,0.00193685]
[1642901494032,0.00113684,2450.7,2450.3,0.00193685]
[1642901498174,1.52401949,2451.1,2450.9,1.36140253]
[1642901498175,1.47515633,2451.1,2450.9,1.36140253]
[1642901498773,0.00170527,2451.0,2450.9,1.36140253]
[1642901500025,0.00170527,2451.0,2450.5,3.7669]
[1642901500226,0.00170527,2451.0,2450.4,0.00170527]
[1642901500430,0.00113685,2450.9,2450.4,0.00170527]
[1642901500827,0.00454739,2451.5,2450.4,0.00170527]
[1642901501227,0.00397897,2451.4,2450.4,0.00170527]
[1642901501434,1.10327436,2451.2,2451.1,1.45287177]
[1642901501729,1.10327436,2451.2,2450.4,0.00170527]
[1642901501730,1.10611648,2451.2,2450.4,0.00170527]
[1642901502130,0.0022737,2451.1,2450.4,0.00170527]
[1642901502328,0.1334,2451.6,2450.5,2.7]
[1642901502531,0.04,2452.1,2451.0,0.01217008]
[1642901502730,0.00227369,2451.5,2451.2,0.0451435]
[1642901502928,0.00227369,2451.5,2451.1,0.20385]
[1642901503126,0.04,2452.1,2451.0,0.01217008]
[1642901503127,0.00170527,2451.4,2451.0,0.01217008]
[1642901503328,1.37944694,2451.3,2451.1,1.33402602]
[1642901503527,1.37944694,2451.3,2450.8,3.9689]
[1642901503528,1.38058379,2451.3,2450.8,3.9689]
[1642901503779,1.38058379,2451.3,2450.6,0.00284212]
[1642901503984,1.38058379,2451.3,2450.3,0.0008]
[1642901503985,1.38058379,2451.3,2450.9,0.00113685]
[1642901504180,1.38058379,2451.3,2450.6,0.00284212]
[1642901504385,1.38058379,2451.3,2450.4,0.48199898]
[1642901504582,0.00113685,2451.3,2450.4,0.68584898]
[1642901504783,0.00113685,2451.3,2450.5,0.00341054]
[1642901504982,0.00113685,2451.3,2450.6,0.36705]
[1642901505184,3.685e-05,2451.3,2450.7,23.90265214]